bitfinex-derivatives/quotes_ETHF0:USTF0_20251012
["timestamp","ask_amount","ask_price","bid_price","bid_amount"]
[1760291733692,0.43642,4120.7,4120.3,0.43646]
[1760291733898,2.16252,4120.7,4120.4,1.7961]
[1760291734094,1.7261,4120.4,4120.3,0.00285028]
[1760291734802,0.43645,4120.5,4120.4,1.7961]
[1760291734992,2.16255,4120.5,4120.4,1.7961]
[1760291735190,0.43645,4120.5,4120.4,1.7961]
[1760291735705,4.9339,4121.9,4120.6,1.7961]
[1760291735898,4.9339,4121.9,4121.1,1.7961]
[1760291736202,0.43629,4122.0,4121.9,1.7961]
[1760291736697,0.00218134,4122.3,4122.1,1.7961]
[1760291736900,0.00218134,4122.3,4122.1,2.23237]
[1760291737303,0.00218134,4122.3,4122.0,0.6679]
[1760291737503,0.00218134,4122.3,4122.1,1.7961]
[1760291737906,0.00218134,4122.3,4122.0,0.6679]
[1760291738299,0.00218134,4122.3,4122.1,1.7961]
[1760291738600,0.00218134,4122.3,4122.0,0.6679]
[1760291738795,0.00218134,4122.3,4122.1,1.7961]
[1760291739195,0.00218134,4122.3,4122.0,0.6679]
[1760291739401,0.00218134,4122.3,4122.1,1.7961]
[1760291739605,0.00218134,4122.3,4122.0,0.6679]
[1760291740105,0.00218134,4122.3,4122.0,1.10418]
[1760291740405,0.00218134,4122.3,4122.1,1.7961]
[1760291740998,0.00218134,4122.3,4122.2,1.7961]
[1760291742408,1.7261,4122.1,4121.9,1.7961]
[1760291742705,1.7261,4122.0,4121.9,1.7961]
[1760291742907,2.16239,4121.9,4121.8,3.2078]
[1760291743410,0.43634,4121.5,4121.3,3.2078]
[1760291743601,1.6848,4121.4,4121.3,3.2078]
[1760291744807,1.6848,4121.4,4120.7,3.2078]
[1760291744808,2.12121,4120.8,4120.7,3.2078]
[1760291745004,1.6848,4120.9,4120.2,3.2078]
[1760291745204,0.6841,4120.5,4120.2,3.2078]
[1760291745406,2.12125,4120.4,4120.2,3.2078]
[1760291746813,1.6848,4120.4,4120.2,3.2078]
[1760291747110,0.43644,4120.6,4120.4,1.7314]
[1760291747409,0.6841,4121.0,4120.4,1.7314]
[1760291747607,2.3689,4121.0,4120.2,3.2078]
[1760291747909,1.6848,4120.7,4120.2,3.2078]
[1760291748107,0.43642,4120.8,4120.4,1.7314]
[1760291748500,1.6848,4120.7,4120.4,1.7314]
[1760291748814,0.43642,4120.7,4120.4,1.7314]
[1760291749205,1.6848,4120.6,4120.2,3.2078]
[1760291749406,1.6848,4121.3,4120.5,0.6648]
[1760291749604,3.2078,4121.8,4120.9,3.2078]
[1760291749605,0.43638,4121.1,4120.9,3.2078]
[1760291749807,2.3689,4121.0,4120.9,3.2078]
[1760291750111,1.6848,4120.9,4120.3,3.21065028]
[1760291750707,1.6848,4120.9,4120.3,3.64711028]
[1760291750907,2.12121,4120.9,4120.3,3.64711028]
[1760291751103,1.6848,4120.7,4120.3,3.64711028]
[1760291751309,1.6848,4120.7,4120.4,1.7314]
[1760291751506,0.43641,4120.8,4120.4,1.7314]
[1760291752111,1.6848,4120.7,4120.3,3.64711028]
[1760291753011,1.6848,4120.7,4120.4,1.7314]
[1760291753314,1.6848,4120.6,4120.4,1.7314]
[1760291753514,0.43642,4120.7,4120.4,1.7314]
[1760291753710,0.6841,4121.0,4120.4,1.7314]
[1760291753915,0.43641,4120.8,4120.3,3.64711028]
[1760291754112,1.6848,4121.3,4120.6,1.7314]
[1760291754310,0.6841,4121.5,4120.8,3.2078]
[1760291754619,1.6848,4120.9,4120.8,3.2078]
[1760291755116,1.6848,4120.9,4120.8,4.9392]
[1760291755317,1.6848,4120.9,4120.8,3.2078]
[1760291755512,1.6848,4120.5,4120.3,3.21065028]
[1760291755714,1.6848,4120.4,4120.3,3.21065028]
[1760291757020,0.43643,4120.7,4120.4,1.7314]
[1760291757219,1.6848,4120.6,4120.3,3.21065028]
[1760291757513,0.43643,4120.7,4120.6,1.7314]
[1760291757721,2.12123,4120.7,4120.6,1.7314]
[1760291758517,3.2078,4121.3,4120.6,1.7314]
[1760291758719,1.6848,4122.1,4121.3,1.7314]
[1760291759012,1.6848,4122.1,4121.0,0.6648]
[1760291759013,0.43634,4121.6,4121.0,1.10119]
[1760291759206,0.43634,4121.6,4121.1,0.43637]
[1760291759412,1.6848,4121.5,4121.3,1.7314]
[1760291759617,2.12114,4121.5,4121.3,1.7314]
[1760291759813,1.6848,4121.5,4121.4,1.7314]
[1760291760016,1.6848,4122.2,4121.4,1.7314]
[1760291760318,3.22587101,4122.2,4121.7,0.4363]
[1760291760517,4.47441101,4122.2,4122.0,1.7314]
[1760291760816,3.20998134,4122.3,4122.0,1.7314]
[1760291760817,0.00218134,4122.3,4122.2,1.7314]
[1760291767818,0.00218134,4122.3,4122.1,3.2078]
[1760291768114,1.6626,4122.2,4122.1,3.2078]
[1760291768321,0.00218134,4122.3,4122.1,4.9276]
[1760291768518,0.00218134,4122.3,4122.2,1.7198]
[1760291769312,1.6626,4122.2,4122.1,3.2078]
[1760291769720,4.46304652,4122.2,4122.1,3.2078]
[1760291770420,1.6626,4122.2,4122.1,3.2078]
[1760291772421,0.43843134,4122.3,4122.2,0.43626]
[1760291772422,0.00218134,4122.3,4122.2,0.43626]
[1760291772620,0.00218134,4122.3,4122.2,2.15606]
[1760291773623,0.43612,4123.6,4123.3,0.43614]
[1760291773922,0.43613,4123.5,4123.2,0.43616]
[1760291774112,0.43613,4123.5,4123.3,0.43615]
[1760291774315,2.77432127,4123.9,4123.3,1.7198]
[1760291774527,1.6626,4124.2,4124.1,2.15586]
[1760291774717,0.43601,4124.7,4124.2,0.43605]
[1760291774918,0.43602,4124.5,4124.3,1.7198]
[1760291775219,0.7228,4124.5,4123.9,0.43608]
[1760291775418,0.43605,4124.2,4123.9,0.43608]
[1760291776119,0.43605,4124.2,4123.8,3.2078]
[1760291776319,0.7228,4124.0,4123.1,4.9276]
[1760291776522,1.6626,4123.4,4123.1,3.2078]
[1760291776719,1.6626,4123.4,4122.3,1.09063]
[1760291776720,1.6626,4123.4,4122.4,3.2078]
[1760291776925,3.62233,4123.4,4122.4,3.2078]
[1760291778025,3.62233,4123.4,4122.7,1.7198]
[1760291778923,3.62233,4123.4,4123.2,0.43615]
[1760291779114,1.6626,4123.4,4123.2,0.43615]
[1760291779918,1.15887,4124.0,4123.6,0.43611]
[1760291780221,3.1950876,4123.9,4123.6,2.15591]
[1760291780417,1.6626,4123.8,4123.6,2.15591]
[1760291781026,1.6626,4123.8,4123.7,1.7198]
[1760291781822,0.7228,4124.0,4123.7,0.4361]
[1760291781823,0.43608,4123.9,4123.7,0.4361]
[1760291782025,2.3854,4124.0,4123.3,1.72172726]
[1760291782219,2.56834645,4123.9,4123.8,0.43609]
[1760291782528,4.23094645,4123.9,4123.8,0.43609]
[1760291782727,4.23094645,4123.9,4123.6,0.4361]
[1760291782927,2.56834645,4123.9,4123.6,1.7198]
[1760291783127,1.6626,4123.8,4123.6,1.7198]
[1760291783423,3.2078,4124.1,4124.0,0.43607]
[1760291783726,4.8704,4124.1,4124.0,0.43607]
[1760291784123,4.8704,4124.1,4123.7,1.7198]
[1760291784124,0.43609,4123.9,4123.7,1.7198]
[1760291784322,1.6626,4123.6,4123.5,3.2078]
[1760291784623,1.6626,4123.6,4123.3,1.72172726]
[1760291784624,1.6626,4123.4,4123.3,0.00192726]
[1760291785230,2.09873,4123.4,4123.3,0.00192726]
[1760291785522,4.41669044,4123.4,4123.3,0.00192726]
[1760291786029,2.09873,4123.4,4123.3,0.43807726]
[1760291786224,4.85792489,4123.4,4123.3,0.43807726]
[1760291786437,1.6626,4123.4,4123.3,2.15787726]
[1760291786826,4.8704,4124.1,4123.3,1.72172726]
[1760291787120,2.77242197,4123.9,4123.6,1.7198]
[1760291787322,4.43502197,4123.9,4123.5,3.2078]
[1760291787531,1.6626,4123.9,4123.5,3.2078]
[1760291787733,3.2078,4124.1,4123.6,1.7198]
[1760291788031,2.77242197,4124.0,4123.6,1.7198]
[1760291788231,0.43608,4123.9,4123.7,0.4361]
[1760291788526,0.43609,4123.8,4123.6,2.15591]
[1760291788728,2.09871,4123.6,4123.3,0.00192726]
[1760291788933,1.6626,4123.4,4123.3,0.00192726]
[1760291789326,4.14755517,4123.4,4123.3,0.00192726]
[1760291789630,2.09873,4123.4,4123.3,0.00192726]
[1760291789931,4.90737558,4123.4,4123.3,0.00192726]
[1760291791127,8.10324712,4123.4,4123.3,0.00192726]
[1760291792529,0.43632,4121.7,4121.5,4.25849376]
[1760291792729,1.7224,4121.2,4121.1,3.2078]
[1760291793233,1.7224,4120.7,4120.6,3.2078]
[1760291793627,1.72523621,4120.7,4120.6,3.2095494]
[1760291793836,1.72523621,4120.7,4120.6,3.6459794]
[1760291794234,1.72523621,4120.7,4120.6,5.3751794]
[1760291794529,0.00283621,4120.7,4120.6,5.3751794]
[1760291795538,1.72523621,4120.7,4120.6,4.9387494]
[1760291795933,0.00283621,4120.7,4120.6,4.9387494]
[1760291801832,0.00283621,4120.7,4119.3,1.7292]
[1760291801833,1.09115,4120.4,4119.3,1.7292]
[1760291802137,4.5138177,4120.3,4119.6,1.7292]
[1760291802341,0.43649,4120.1,4119.5,4.31375]
[1760291802645,2.1589,4120.0,4119.7,1.7292]
[1760291802846,0.7078,4120.5,4119.5,3.8772]
[1760291802847,0.43647,4120.3,4119.5,3.8772]
[1760291803144,2.04107,4120.3,4120.2,1.7292]
[1760291803837,1.6046,4120.2,4120.1,3.2078]
[1760291804032,0.43648,4120.1,4119.7,0.00222172]
[1760291804235,2.04108,4120.1,4119.7,0.00222172]
[1760291804435,1.6046,4120.0,4119.8,1.625]
[1760291805045,0.43649,4120.1,4119.8,1.625]
[1760291805246,1.6046,4119.9,4119.8,1.625]
[1760291805542,1.6046,4119.8,4119.7,0.00222172]
[1760291805750,0.43651,4119.9,4119.7,1.62722172]
[1760291806046,1.6046,4120.0,4119.8,1.625]
[1760291806250,0.4365,4120.0,4119.7,0.00222172]
[1760291806536,2.73010444,4120.4,4119.8,1.625]
[1760291806740,2.04105,4120.5,4120.2,1.625]
[1760291806934,2.04105,4120.4,4120.2,1.625]
[1760291807342,1.6046,4120.3,4120.2,1.625]
[1760291808038,0.00283621,4120.7,4120.4,0.43645]
[1760291808237,2.04104,4120.6,4120.3,0.43646]
[1760291808436,2.04104,4120.6,4120.5,1.625]
[1760291808640,2.04104,4120.6,4120.2,0.43647]
[1760291808938,2.04105,4120.5,4120.3,1.625]
[1760291809137,0.43646,4120.4,4120.1,4.8328]
[1760291809349,0.43646,4120.4,4120.3,1.625]
[1760291809738,0.43647,4120.3,4120.1,3.2078]
[1760291809938,1.6046,4120.2,4120.1,3.2078]
[1760291810141,2.04107,4120.2,4120.1,3.2078]
[1760291810446,0.43652,4119.8,4119.7,0.00222172]
[1760291810746,2.04112,4119.8,4119.7,0.00222172]
[1760291810950,1.6046,4119.8,4119.7,0.00222172]
[1760291811141,1.6046,4119.8,4119.7,1.62722172]
[1760291811342,1.6046,4120.2,4119.8,1.625]
[1760291811543,0.655,4120.5,4119.8,1.625]
[1760291811743,0.4365,4120.0,4119.8,1.625]
[1760291812144,2.0411,4120.0,4119.8,1.625]
[1760291812344,1.6046,4120.0,4119.9,3.2078]
[1760291812546,2.04112,4119.8,4119.7,0.00222172]
[1760291816658,3.2078,4120.2,4119.8,1.625]
[1760291816948,0.43651,4119.9,4119.7,0.00222172]
[1760291817146,1.6046,4119.8,4119.7,1.62722172]
[1760291818248,2.04112,4119.8,4119.7,1.62722172]
[1760291819150,1.6046,4119.8,4119.7,1.62722172]
[1760291820148,0.655,4120.5,4119.7,1.62722172]
[1760291820347,1.6046,4120.4,4120.1,1.625]
[1760291820552,0.655,4120.5,4120.0,3.2078]
[1760291820753,0.43646,4120.3,4120.0,3.2078]
[1760291820948,1.6046,4120.2,4120.0,3.2078]
[1760291821153,0.43646,4120.3,4120.0,3.2078]
[1760291821450,1.6046,4120.2,4120.0,4.8328]
[1760291822147,0.00283621,4120.7,4120.1,1.625]
[1760291822354,1.60743621,4120.7,4120.1,1.625]
[1760291822550,0.43644,4120.6,4120.0,3.9119]
[1760291822744,0.00283621,4120.7,4120.1,1.6806]
[1760291824451,0.43925621,4120.7,4120.1,1.6806]
[1760291824652,0.43925621,4120.7,4120.0,3.9119]
[1760291824852,0.43925621,4120.7,4120.1,1.6806]
[1760291825056,0.43652,4119.8,4119.7,0.00222172]
[1760291825358,2.13072,4119.8,4119.7,0.00222172]
[1760291825557,1.6942,4119.8,4119.7,0.00222172]
[1760291825866,1.6942,4120.3,4119.7,1.68282172]
[1760291826053,1.6942,4119.9,4119.8,1.6806]
[1760291826458,1.6942,4120.4,4119.8,1.6806]
[1760291826760,2.09962,4119.8,4119.7,0.00222172]
[1760291827149,2.09962,4119.8,4118.5,0.665]
[1760291827150,2.09743,4118.8,4118.6,1.6806]
[1760291827349,2.09743,4118.8,4118.4,3.2078]
[1760291827350,0.43665,4118.6,4118.4,3.2078]
[1760291827558,1.6608,4118.5,4118.4,3.2078]
[1760291828063,2.09746,4118.4,4118.1,1.6806]
[1760291828264,0.43668,4118.3,4118.1,1.6806]
[1760291828463,0.43668,4118.3,4118.1,1.6829197]
[1760291828764,1.6608,4118.4,4118.1,1.6829197]
[1760291828966,1.6608,4118.4,4118.1,0.0023197]
[1760291829156,1.6608,4118.4,4118.2,1.6806]
[1760291829658,0.43664,4118.7,4118.2,1.6806]
[1760291829867,3.2078,4118.9,4118.5,0.665]
[1760291830156,1.6608,4118.2,4118.1,0.0023197]
[1760291832258,0.43668,4118.3,4118.1,0.0023197]
[1760291832560,1.6608,4118.2,4118.1,0.0023197]
[1760291833565,4.33986914,4118.2,4118.1,0.0023197]
[1760291834660,2.67906914,4118.2,4118.1,1.6829197]
[1760291834865,1.6608,4118.6,4118.3,1.6806]
[1760291835060,0.43664,4118.7,4118.3,1.6806]
[1760291835367,3.2078,4118.9,4118.1,0.0023197]
[1760291835368,2.53104898,4118.5,4118.1,0.0023197]
[1760291835564,1.6608,4118.8,4118.1,0.0023197]
[1760291835768,4.31348096,4118.8,4118.1,0.0023197]
[1760291836062,1.6608,4118.8,4118.1,0.0023197]
[1760291836268,0.43664,4118.7,4118.3,1.6806]
[1760291836468,0.43666,4118.5,4118.1,0.0023197]
[1760291836664,1.6608,4118.4,4118.1,0.0023197]
[1760291836864,1.6608,4118.2,4118.1,0.0023197]
[1760291838657,1.6608,4118.1,4116.7,3.2078]
[1760291838862,3.2078,4117.3,4116.7,1.6806]
[1760291839161,3.2078,4117.3,4116.0,3.8728]
[1760291839162,3.2078,4117.3,4116.8,0.43686]
[1760291839371,4.8686,4117.3,4116.6,1.6806]
[1760291839561,4.8686,4117.8,4116.6,1.6806]
[1760291839761,0.00197935,4117.3,4116.6,1.68322573]
[1760291840270,0.00197935,4117.3,4117.1,1.6806]
[1760291842070,0.00197935,4117.3,4117.1,2.11744]
[1760291842366,0.00197935,4117.3,4117.2,1.6806]
[1760291843872,0.00197935,4117.3,4117.2,2.11743]
[1760291847970,3.2078,4118.9,4118.5,0.665]
[1760291848268,5.3052,4119.4,4119.3,1.6806]
[1760291848461,5.3052,4119.4,4119.1,1.6806]
[1760291848662,3.2078,4119.4,4119.1,1.6806]
[1760291848861,3.2078,4119.4,4119.0,1.10164]
[1760291848862,1.6608,4119.3,4119.0,0.43664]
[1760291849061,1.66266708,4119.3,4119.1,1.6806]
[1760291849268,0.00186708,4119.3,4119.1,1.6806]
[1760291849966,0.00186708,4119.3,4119.2,2.11722]
[1760291852573,1.6174,4119.2,4119.1,2.13032]
[1760291852765,0.00186708,4119.3,4119.2,1.6937]
[1760291854571,0.00186708,4119.3,4119.2,2.13032]
[1760291857770,3.2078,4120.4,4119.6,1.09143]
[1760291858072,5.89023077,4120.4,4120.3,2.1302]
[1760291858278,2.19068439,4120.4,4120.3,5.338]
[1760291858570,3.2078,4120.9,4120.8,2.13015]
[1760291858870,3.20999178,4120.9,4120.8,2.1322218]
[1760291863985,0.00219178,4120.9,4120.8,2.1322218]
[1760291864476,0.00219178,4120.9,4120.8,5.3400218]
[1760291865682,0.00219178,4120.9,4120.8,4.9035718]
[1760291866684,1.60399178,4120.9,4120.8,3.2098718]
[1760291867082,1.60399178,4120.9,4120.8,4.7699718]
[1760291867683,1.60399178,4120.9,4120.8,1.5621718]
[1760291868086,2.04043178,4120.9,4120.8,0.0020718]
[1760291869884,2.05043178,4120.9,4120.8,0.0020718]
[1760291870381,0.01219178,4120.9,4120.8,1.9986218]
[1760291871273,0.01219178,4120.9,4120.8,1.5621718]
[1760291871683,2.05043178,4120.9,4120.8,0.0020718]
[1760291871885,0.01219178,4120.9,4120.8,1.5621718]
[1760291872080,0.44863178,4120.9,4120.8,1.5621718]
[1760291874186,0.01219178,4120.9,4120.8,1.5621718]
[1760291874387,0.44863178,4120.9,4120.8,1.5621718]
[1760291874791,0.01219178,4120.9,4120.8,1.5621718]
[1760291875993,0.01219178,4120.9,4120.8,1.9986218]
[1760291876896,1.61399178,4120.9,4120.8,0.0020718]
[1760291877187,0.01219178,4120.9,4120.8,1.5621718]
[1760291878685,0.44863178,4120.9,4120.8,1.5621718]
[1760291878892,2.05043178,4120.9,4120.8,1.5621718]
[1760291879088,1.61399178,4120.9,4120.8,1.5621718]
[1760291879685,1.61399178,4120.9,4120.8,0.0020718]
[1760291879686,2.05043178,4120.9,4120.8,0.0020718]
[1760291880198,2.05043178,4120.9,4120.8,1.5621718]
[1760291880496,0.44863178,4120.9,4120.8,1.5621718]
[1760291880889,2.05043178,4120.9,4120.8,1.5621718]
[1760291881392,4.17093178,4120.9,4120.8,0.0020718]
[1760291882297,4.17093178,4120.9,4120.8,1.5621718]
[1760291883298,2.56913178,4120.9,4120.8,1.5621718]
[1760291883500,0.01219178,4120.9,4120.8,4.1821218]
[1760291884996,1.09077,4122.2,4120.8,4.1821218]
[1760291884997,3.64413,4122.0,4120.8,3.7456718]
[1760291885204,4.69513,4122.0,4121.9,3.809]
[1760291885404,8.49902641,4122.0,4121.9,2.6649]
[1760291885796,0.43636,4121.6,4121.5,1.7291]
[1760291885997,2.53300173,4121.6,4121.5,4.466]
[1760291886193,4.10672,4121.1,4121.0,2.6649]
[1760291886498,2.53024,4120.9,4120.8,2.6669718]
[1760291887401,2.53024,4120.9,4120.8,0.0020718]
[1760291887402,4.10674,4120.9,4120.8,0.0020718]
[1760291887601,4.10674,4120.9,4120.2,1.5928]
[1760291887602,0.4365,4120.3,4120.2,1.5928]
[1760291887797,1.5765,4120.1,4119.0,0.657]
[1760291887998,0.43655,4119.9,4119.0,0.657]
[1760291888299,0.43656,4119.7,4119.6,1.5928]
[1760291888694,0.43656,4119.7,4119.6,1.59542057]
[1760291888900,3.64435,4119.9,4119.6,0.00262057]
[1760291889094,3.2078,4119.9,4119.6,0.00262057]
[1760291889312,3.2078,4120.7,4120.5,0.657]
[1760291889607,3.2078,4120.7,4120.6,1.5928]
[1760291890810,3.2078,4121.3,4121.1,2.02921]
[1760291891011,3.2078,4121.3,4121.2,1.5928]
[1760291891603,0.43921173,4121.6,4121.5,2.2498]
[1760291893999,0.43921173,4121.6,4121.5,1.5928]
[1760291894206,0.00284173,4121.6,4121.5,2.2498]
[1760291897113,0.00284173,4121.6,4121.5,1.5928]
[1760291897912,0.00284173,4121.6,4121.5,2.68617]
[1760291903513,0.00284173,4121.6,4121.5,2.2498]
[1760291903918,0.00284173,4121.6,4121.5,4.466]
[1760291905908,2.53300173,4121.6,4121.5,4.466]
[1760291906110,2.53300173,4121.6,4121.0,0.657]
[1760291906111,2.0938,4121.2,4121.1,1.5928]
[1760291906314,2.0938,4121.2,4121.1,2.6649]
[1760291906511,0.00284173,4121.6,4121.2,1.5928]
[1760291906710,1.05384173,4121.6,4121.5,3.3219]
[1760291907118,0.00284173,4121.6,4121.5,4.466]
[1760291907415,0.00284173,4121.6,4121.5,2.2498]
[1760291908614,0.43920173,4121.6,4121.5,2.2498]
[1760291908913,0.00284173,4121.6,4121.5,2.2498]
[1760291909713,0.00284173,4121.6,4121.5,2.68617]
[1760291909919,0.00284173,4121.6,4121.5,2.2498]
[1760291910416,0.00284173,4121.6,4121.5,2.68617]
[1760291913815,0.00284173,4121.6,4121.5,4.86297]
[1760291914620,1.07604173,4121.6,4121.5,4.4266]
[1760291915127,0.00284173,4121.6,4121.5,4.86297]
[1760291917124,0.00284173,4121.6,4121.5,4.4266]
[1760291917319,1.07604173,4121.6,4121.5,4.4266]
[1760291917625,2.63530173,4121.6,4121.5,4.4266]
[1760291918312,0.00284173,4121.6,4121.5,4.4266]
[1760291918518,0.43920173,4121.6,4121.5,4.4266]
[1760291919319,2.63530173,4121.6,4121.5,1.5928]
[1760291919522,2.1961,4121.1,4120.7,1.6169]
[1760291919823,1.0732,4121.1,4121.0,4.85023]
[1760291920020,1.0732,4121.1,4121.0,4.4138]
[1760291921119,4.7174,4121.3,4121.2,1.0648]
[1760291921324,4.7174,4121.3,4121.2,3.7864]
[1760291921720,4.281,4121.3,4121.2,3.7864]
[1760291924621,4.281,4121.3,4120.0,0.657]
[1760291924622,1.5017,4121.2,4120.4,2.0765]
[1760291924821,15.6017709,4121.3,4120.5,4.6995]
[1760291924822,3.2078,4120.6,4120.5,4.6995]
[1760291925019,3.2078,4121.2,4121.1,3.6466]
[1760291925926,4.2864,4121.2,4121.1,3.6466]
[1760291927531,3.2078,4121.2,4121.1,3.6466]
[1760291930834,4.2864,4121.2,4121.1,3.6466]
[1760291932531,3.2078,4121.2,4121.1,3.6466]
[1760291932727,3.2078,4121.2,4121.1,1.5701]
[1760291932728,5.2881,4121.2,4121.1,1.5701]
[1760291933024,1.5017,4121.1,4121.0,1.0124]
[1760291933226,2.0803,4121.1,4121.0,3.1989]
[1760291933432,3.582,4121.1,4121.0,3.1989]
[1760291934331,2.0803,4120.6,4120.5,4.263]
[1760291934531,0.43645,4121.1,4120.6,1.5701]
[1760291934732,2.51675,4121.1,4121.0,2.5825]
[1760291935039,3.2078,4121.2,4121.0,4.263]
[1760291935226,5.2881,4121.2,4121.0,0.6164]
[1760291935420,4.2864,4121.2,4121.1,1.0124]
[1760291935624,4.2864,4121.2,4121.1,3.6466]
[1760291935826,3.2078,4121.2,4121.1,3.6466]
[1760291938638,4.2864,4121.2,4121.1,3.6466]
[1760291940129,3.2078,4121.2,4121.1,3.6466]
[1760291942536,3.2078,4121.2,4121.1,4.08304]
[1760291943329,7.24953879,4121.2,4120.5,0.6164]
[1760291943537,3.53890934,4120.8,4120.7,1.0478]
[1760291943926,3.53890934,4120.8,4120.7,2.5802]
[1760291944331,2.1415,4120.8,4120.7,2.5802]
[1760291944637,3.6064,4120.8,4120.1,4.25849376]
[1760291944834,2.5305,4120.2,4120.1,4.25849376]
[1760291945033,2.1415,4120.1,4120.0,2.5802]
[1760291945333,2.1415,4120.1,4120.0,3.1934]
[1760291945628,2.1415,4120.1,4120.0,3.62996]
[1760291945833,2.47330934,4120.6,4120.5,2.7651]
[1760291946038,3.2078,4120.7,4120.6,4.1208]
[1760291947432,4.2837,4121.2,4121.1,2.5802]
[1760291947642,5.3493,4121.2,4121.1,3.6843]
[1760291950432,3.2078,4121.2,4121.1,3.6843]
[1760291950630,1.46774173,4121.6,4121.5,0.4364]
[1760291950631,0.00284173,4121.6,4121.5,0.4364]
[1760291950832,2.97178886,4122.4,4122.3,1.5324]
[1760291951042,1.5057,4123.4,4122.5,3.821]
[1760291951043,0.01,4123.4,4122.5,3.821]
[1760291951343,4.15524891,4123.3,4122.6,1.5324]
[1760291951532,0.01,4123.4,4123.0,5.21840934]
[1760291951739,0.0124588,4123.4,4123.3,2.92980934]
[1760291952139,8.8e-06,4123.4,4123.3,2.92980934]
[1760291952340,1.4957,4124.9,4123.5,0.6132]
[1760291952544,1.4957,4124.9,4124.2,1.5324]
[1760291952745,4.19410855,4124.9,4124.2,1.5324]
[1760291953142,2.69840855,4124.9,4124.2,1.5324]
[1760291953446,0.00235722,4124.9,4124.2,1.5324]
[1760291953745,0.00235722,4124.9,4124.8,4.7402]
[1760291955639,3.2078,4126.3,4125.8,0.43594]
[1760291955842,1.4957,4126.4,4125.9,1.5324]
[1760291956046,3.2078,4126.8,4125.9,1.96833]
[1760291956047,1.4957,4126.7,4125.9,1.96833]
[1760291956241,1.4957,4126.7,4126.0,0.43592]
[1760291956440,2.66822745,4126.7,4126.2,1.5324]
[1760291956747,0.00291441,4126.7,4126.2,0.00294553]
[1760291956940,1.4957,4126.6,4126.2,0.00294553]
[1760291957136,1.4957,4126.6,4126.3,1.5324]
[1760291957441,0.00291441,4126.7,4126.6,0.43586]
[1760291957643,0.00291441,4126.7,4126.6,1.5324]
[1760291957837,0.00291441,4126.7,4126.2,3.64664553]
[1760291957838,0.00291441,4126.7,4126.3,0.43588]
[1760291958040,0.6059,4126.5,4126.2,3.21074553]
[1760291958237,1.4957,4126.4,4126.2,0.00294553]
[1760291958647,7.28027893,4126.3,4126.2,0.00294553]
[1760291959555,0.6059,4125.5,4125.0,3.2078]
[1760291959748,0.6059,4125.5,4124.6,1.5324]
[1760291959749,0.43602,4125.2,4124.6,1.5324]
[1760291960046,0.43604,4125.0,4124.5,3.2078]
[1760291960246,0.43604,4124.9,4124.5,4.7402]
[1760291960438,3.2078,4124.7,4124.0,3.821]
[1760291960642,3.2078,4125.2,4124.6,1.5324]
[1760291960844,1.4957,4125.1,4124.6,1.5324]
[1760291961043,1.4957,4124.7,4124.6,1.5324]
[1760291961748,0.43603,4125.0,4124.1,1.5324]
[1760291962343,4.7035,4125.2,4124.1,1.5324]
[1760291962344,0.43605,4124.9,4124.1,1.5324]
[1760291962748,0.43607,4124.7,4124.1,1.5324]
[1760291963344,1.4957,4124.9,4124.1,1.5324]
[1760291963650,0.43605,4124.8,4124.2,1.5324]
[1760291964948,1.93175,4124.9,4124.2,4.7402]
[1760291965253,0.43605,4124.8,4124.2,4.7402]
[1760291966145,3.2078,4125.1,4124.2,4.7402]
[1760291966146,1.93177,4124.7,4124.3,1.5324]
[1760291966341,1.93177,4124.7,4124.2,3.2078]
[1760291966553,1.4957,4124.7,4124.2,3.2078]
[1760291966849,1.4957,4124.5,4124.0,0.61587524]
[1760291967061,1.4957,4124.5,4124.2,3.2078]
[1760291967248,1.4957,4124.5,4124.3,1.5324]
[1760291967449,1.4957,4124.9,4124.3,1.5324]
[1760291967849,0.43607,4124.7,4124.2,3.2078]
[1760291968151,1.93177,4124.7,4124.2,3.2078]
[1760291968348,1.93177,4124.7,4124.3,1.5324]
[1760291968554,1.93177,4124.7,4124.2,3.2078]
[1760291968753,3.00767,4124.7,4124.6,1.0478]
[1760291968949,3.00767,4124.7,4124.6,2.5802]
[1760291969254,3.00767,4124.7,4124.6,3.6843]
[1760291969656,2.5716,4124.7,4124.6,3.6843]
[1760291969845,3.2078,4125.1,4124.7,1.5324]
[1760291970050,0.43602,4125.3,4125.1,1.5324]
[1760291970344,1.51192,4125.3,4125.2,3.6843]
[1760291970548,1.0759,4125.3,4125.2,3.6843]
[1760291970747,1.0759,4125.4,4125.3,3.6843]
[1760291971144,2.5716,4125.4,4125.3,3.6843]
[1760291972141,3.6372,4125.4,4125.3,3.6843]
[1760291972545,3.2078,4125.7,4125.3,2.1519]
[1760291972746,2.6671,4125.4,4125.3,2.1519]
[1760291972952,2.6671,4125.4,4125.3,3.7721]
[1760291975459,4.822,4125.7,4125.4,1.6202]
[1760291975758,7.30808,4125.7,4125.6,3.7206]
[1760291976361,4.69668,4125.7,4125.6,3.7206]
[1760291976855,7.30808,4125.7,4125.6,3.7206]
[1760291977062,7.30808,4125.7,4125.6,2.1004]
[1760291979959,7.30808,4125.7,4125.6,3.7206]
[1760291980155,6.8721,4125.7,4125.6,2.1004]
[1760291980358,6.8721,4125.7,4125.6,3.7206]
[1760291980660,4.2607,4125.7,4125.6,3.7206]
[1760291980860,1.48888,4125.7,4125.6,3.7206]
[1760291981060,4.10028,4125.7,4125.6,3.7206]
[1760291981860,4.10028,4125.7,4122.7,4.25849376]
[1760291981861,0.6467,4125.5,4124.5,3.821]
[1760291982066,2.05022,4125.4,4124.6,1.6202]
[1760291982363,0.43602,4125.3,4124.6,1.6202]
[1760291982662,1.48892,4125.3,4125.2,1.0372]
[1760291982861,4.10038,4124.7,4124.6,1.0372]